fUSD/lending_fUSD_20251130
["ID","MTS","AMOUNT","RATE_DAILY","PERIOD"]
[395129839,1764461442106,-1322.3360951,0.000169,2]
[395129840,1764461442117,-1053.86383915,0.000169,2]
[395129841,1764461442130,-440.38451142,0.000169,2]
[395129842,1764461442142,-183.5991517,0.000169,2]
[395129843,1764461442154,-1226.0,0.00016959,2]
[395129844,1764461442166,-1496.79096699,0.00016965,2]
[395129845,1764461442178,-500.0,0.00016973,2]
[395129846,1764461442190,-500.0,0.00016973,2]
[395129847,1764461442206,-500.0,0.00016973,2]
[395129848,1764461442218,-500.0,0.00016973,2]
[395129849,1764461442229,-231.63969334,0.00016973,2]
[395129850,1764461442241,-500.0,0.00016973,2]
[395129851,1764461442253,-500.0,0.00016973,2]
[395129852,1764461442264,-500.0,0.00016973,2]
[395129853,1764461442276,-165.98212225,0.00016973,2]
[395129854,1764461442288,-500.0,0.00016973,2]
[395129855,1764461442300,-500.0,0.00016973,2]
[395129856,1764461442312,-500.0,0.00016973,2]
[395129857,1764461442323,-186.88026511,0.00016973,2]
[395129858,1764461442337,-415.30385931,0.00016973,2]
[395129859,1764461442350,-500.0,0.00016973,2]
[395129860,1764461442362,-215.63945955,0.00016973,2]
[395129861,1764461442375,-500.0,0.00016973,2]
[395129862,1764461442387,-500.0,0.00016973,2]
[395129863,1764461442399,-500.0,0.00016973,2]
[395129864,1764461442410,-500.0,0.00016973,2]
[395129865,1764461442421,-500.0,0.00016973,2]
[395129866,1764461442436,-500.0,0.00016973,2]
[395129867,1764461442448,-500.0,0.00016973,2]
[395129868,1764461442461,-500.0,0.00016973,2]
[395129869,1764461442482,-500.0,0.00016973,2]
[395129870,1764461442494,-500.0,0.00016973,2]
[395129871,1764461442513,-500.0,0.00016973,2]
[395129872,1764461442525,-500.0,0.00016973,2]
[395129873,1764461442536,-500.0,0.00016973,2]
[395129874,1764461442548,-500.0,0.00016973,2]
[395129875,1764461442559,-500.0,0.00016973,2]
[395129876,1764461442571,-500.0,0.00016973,2]
[395129877,1764461442582,-500.0,0.00016973,2]
[395129878,1764461442594,-281.67573932,0.00016973,2]
[395129879,1764461442606,-587.0,0.00016977,2]
[395129880,1764461442617,-200.0,0.00016981,2]
[395129881,1764461442629,-290.89220527,0.00016986,2]
[395129882,1764461442641,-163.76965775,0.00016986,2]
[395129883,1764461442652,-200.0,0.00016986,2]
[395129884,1764461442664,-150.0,0.00016986,2]
[395129885,1764461442675,-150.0,0.00016986,2]
[395129886,1764461442687,-220.47585405,0.0001699,2]
[395129887,1764461442699,-151.0,0.00016997,2]
[395129888,1764461442711,-297.64259009,0.00016999,2]
[395129889,1764461442724,-500.0,0.00016999,2]
[395129890,1764461442735,-500.0,0.00016999,2]
[395129891,1764461442747,-500.0,0.00016999,2]
[395129892,1764461442758,-550.0,0.00016999,2]
[395129894,1764461442771,-300.0,0.00016999,2]
[395129895,1764461442782,-500.0,0.00016999,2]
[395129896,1764461442793,-500.0,0.00016999,2]
[395129897,1764461442805,-500.0,0.00016999,2]
[395129898,1764461442817,-500.0,0.00016999,2]
[395129899,1764461442829,-500.0,0.00016999,2]
[395129900,1764461442840,-500.0,0.00016999,2]
[395129901,1764461442852,-500.0,0.00016999,2]
[395129902,1764461442864,-500.0,0.00016999,2]
[395129903,1764461442876,-500.0,0.00016999,2]
[395129904,1764461442887,-500.0,0.00016999,2]
[395129905,1764461442899,-500.0,0.00016999,2]
[395129906,1764461442911,-500.0,0.00016999,2]
[395129907,1764461442923,-500.0,0.00016999,2]
[395129908,1764461442935,-500.0,0.00016999,2]
[395129909,1764461442947,-500.0,0.00016999,2]
[395129910,1764461442959,-416.08725444,0.00016999,2]
[395129911,1764461442971,-300.0,0.00016999,2]
[395129912,1764461442984,-500.0,0.00016999,2]
[395129913,1764461442995,-500.0,0.00016999,2]
[395129914,1764461443007,-500.0,0.00016999,2]
[395129915,1764461443018,-500.0,0.00016999,2]
[395129916,1764461443757,-500.0,0.00016999,2]
[395129917,1764461443789,-626.34751574,0.00016999,2]
[395129918,1764461443812,-4880692.75344147,0.00017,2]
[395129919,1764461443823,-160.0,0.00017,2]
[395129920,1764461443832,-250.0,0.00017,2]
[395129921,1764461443842,-271937.8036489,0.00017,2]
[395129922,1764461443852,-2000.0,0.00017,2]
[395129923,1764461443861,-1500.0,0.00017068,2]
[395129924,1764461443870,-1500.0,0.00017068,2]
[395129925,1764461443880,-1500.0,0.00017068,2]
[395129926,1764461443889,-1500.0,0.00017068,2]
[395129927,1764461443898,-1009.84757523,0.00017068,2]
[395129928,1764461443907,-1500.0,0.00017068,2]
[395129929,1764461443916,-2351.0,0.0001712,2]
[395129930,1764461443926,-1000.0,0.00017285,2]
[395129931,1764461443935,-300.0,0.0001752,2]
[395129932,1764461443945,-300.0,0.0001752,2]
[395129933,1764461443955,-1000.0,0.00017521,2]
[395129934,1764461443964,-1000.0,0.00017521,2]
[395129935,1764461443974,-1000.0,0.00017521,2]
[395129936,1764461443983,-1000.0,0.00017521,2]
[395129937,1764461443992,-1000.0,0.00017521,2]
[395129938,1764461444001,-1000.0,0.00017521,2]
[395129939,1764461444011,-1000.0,0.00017521,2]
[395129940,1764461444020,-539.82653192,0.00017521,2]
[395129941,1764461444029,-615.51796754,0.00017521,2]
[395129942,1764461444038,-1000.0,0.00017521,2]
[395129943,1764461444047,-1000.0,0.00017521,2]
[395129944,1764461444057,-505.98502677,0.00017521,2]
[395129945,1764461444066,-338.57088426,0.00017521,2]
[395129946,1764461444076,-1000.0,0.00017521,2]
[395129947,1764461444085,-268.93907095,0.00017521,2]
[395129948,1764461444095,-1000.0,0.00017521,2]
[395129949,1764461444105,-502.30829307,0.00017521,2]
[395129950,1764461444115,-1000.0,0.00017521,2]
[395129951,1764461444125,-1000.0,0.00017521,2]
[395129952,1764461444134,-1000.0,0.00017521,2]
[395129953,1764461444143,-885.2307226,0.00017521,2]
[395129954,1764461444152,-1000.0,0.00017521,2]
[395129955,1764461444162,-1000.0,0.00017521,2]
[395129956,1764461444171,-1000.0,0.00017521,2]
[395129957,1764461444180,-1000.0,0.00017521,2]
[395129958,1764461444189,-1000.0,0.00017521,2]
[395129959,1764461444199,-1000.0,0.00017521,2]
[395129960,1764461444210,-452.21585205,0.00017534,2]
[395129961,1764461444220,-300.0,0.00017615,2]
[395129962,1764461444229,-296.87113101,0.00017615,2]
[395129963,1764461444239,-2000.0,0.00017616,2]
[395129964,1764461444249,-543.587836,0.00017616,2]
[395129965,1764461444258,-2000.0,0.00017616,2]
[395129966,1764461444268,-2000.0,0.00017616,2]
[395129967,1764461444277,-1824.24405167,0.00017616,2]
[395129968,1764461444286,-166.66,0.00017657,2]
[395129969,1764461444295,-8159.14,0.00017728,2]
[395129970,1764461444306,-19999.99,0.00017728,2]
[395129971,1764461444315,-4130.57,0.00017728,2]
[395129972,1764461444324,-1600.0,0.00017754,2]
[395129973,1764461444333,-151.0,0.00017766,2]
[395129974,1764461444343,-736.0,0.00017771,2]
[395129975,1764461444352,-157.0,0.00017793,2]
[395129976,1764461444361,-152.0,0.00017793,2]
[395129977,1764461444371,-152.0,0.00017793,2]
[395129978,1764461444380,-152.0,0.00017793,2]
[395129979,1764461444389,-152.0,0.00017793,2]
[395129980,1764461444398,-152.0,0.00017793,2]
[395129981,1764461444407,-152.0,0.00017793,2]
[395129982,1764461444416,-152.0,0.00017793,2]
[395129983,1764461444426,-152.0,0.00017793,2]
[395129984,1764461444435,-152.0,0.00017793,2]
[395129985,1764461444444,-152.0,0.00017793,2]
[395129986,1764461444453,-152.0,0.00017793,2]
[395129987,1764461444463,-152.0,0.00017793,2]
[395129988,1764461444472,-152.0,0.00017793,2]
[395129989,1764461444482,-152.0,0.00017793,2]
[395129990,1764461444491,-152.0,0.00017793,2]
[395129991,1764461444500,-182.96,0.00017812,2]
[395129992,1764461444509,-427.45964135,0.00017819,2]
[395129993,1764461444519,-200.0,0.00017937,2]
[395129994,1764461444528,-174.93132879,0.00017963,2]
[395129995,1764461444537,-830.57081561,0.00018068,2]
[395129996,1764461444547,-1615.0167694,0.00018068,2]
[395129997,1764461444556,-1500.0,0.00018068,2]
[395129998,1764461444566,-1500.0,0.00018068,2]
[395129999,1764461444575,-1500.0,0.00018068,2]
[395130000,1764461444584,-819.21380805,0.00018068,2]
[395130001,1764461444593,-1500.0,0.00018068,2]
[395130002,1764461444602,-1001.21506587,0.00018068,2]
[395130003,1764461444611,-1500.0,0.00018068,2]
[395130004,1764461444620,-1500.0,0.00018068,2]
[395130005,1764461444630,-282.74161039,0.00018068,2]
[395130006,1764461444639,-1500.0,0.00018068,2]
[395130007,1764461444649,-1362.64564803,0.00018068,2]
[395130008,1764461444658,-783.26620629,0.00018068,2]
[395130009,1764461444667,-1500.0,0.00018068,2]
[395130010,1764461444676,-508.17996373,0.00018068,2]
[395130011,1764461444685,-1500.0,0.00018068,2]
[395130012,1764461444694,-1500.0,0.00018068,2]
[395130013,1764461444703,-1616.36173236,0.00018068,2]
[395130014,1764461444712,-1008.1346572,0.00018068,2]
[395130015,1764461444722,-963.75,0.00018082,2]
[395130016,1764461444731,-1053.86383912,0.00018098,2]
[395130017,1764461444740,-2500.0,0.00018164,2]
[395130018,1764461444749,-2500.0,0.00018164,2]
[395130019,1764461444758,-2500.0,0.00018164,2]
[395130020,1764461444768,-166.66,0.0001824,2]
[395130021,1764461444777,-34290.16,0.00018356,2]
[395130022,1764461444787,-11476.6,0.00018365,2]
[395130023,1764461444796,-328.45352469,0.00018536,2]
[395130024,1764461444805,-3566.4,0.00018589,2]
[395130025,1764461444815,-823.0,0.00018597,2]
[395130026,1764461444824,-1650.54892794,0.00018616,2]
[395130027,1764461444833,-167.97644675,0.00018616,2]
[395130028,1764461444843,-1512.60268871,0.00018616,2]
[395130029,1764461444852,-1380.42304806,0.00018616,2]
[395130030,1764461444862,-1012.547964,0.00018616,2]
[395130031,1764461444871,-2000.0,0.00018616,2]
[395130032,1764461444882,-558.19890298,0.00018616,2]
[395130033,1764461444892,-283.4470219,0.00018616,2]
[395130034,1764461444902,-2000.0,0.00018616,2]
[395130035,1764461444911,-2000.0,0.00018616,2]
[395130036,1764461444920,-3000.0,0.00018712,2]
[395130037,1764461444929,-1634.06619687,0.00018712,2]
[395130038,1764461444939,-3000.0,0.00018712,2]
[395130039,1764461444948,-963.75,0.0001876,2]
[395130040,1764461444957,-500.0,0.00018765,2]
[395130041,1764461444966,-150.71,0.000188,2]
[395130042,1764461444975,-150.71,0.000188,2]
[395130043,1764461444985,-150.71,0.000188,2]
[395130044,1764461444994,-150.71,0.000188,2]
[395130045,1764461445003,-150.71,0.000188,2]
[395130046,1764461445013,-150.71,0.000188,2]
[395130047,1764461445023,-150.71,0.000188,2]
[395130048,1764461445032,-150.71,0.000188,2]
[395130049,1764461445042,-150.71,0.000188,2]
[395130050,1764461445052,-150.71,0.000188,2]
[395130051,1764461445062,-150.71,0.000188,2]
[395130052,1764461445072,-150.71,0.000188,2]
[395130053,1764461445082,-150.71,0.000188,2]
[395130054,1764461445091,-150.71,0.000188,2]
[395130055,1764461445101,-150.71,0.000188,2]
[395130056,1764461445110,-150.71,0.000188,2]
[395130057,1764461445120,-150.71,0.000188,2]
[395130058,1764461445129,-150.71,0.000188,2]
[395130059,1764461445139,-150.71,0.000188,2]
[395130060,1764461445148,-150.71,0.000188,2]
[395130061,1764461445158,-150.71,0.000188,2]
[395130062,1764461445167,-150.71,0.000188,2]
[395130063,1764461445176,-150.71,0.000188,2]
[395130064,1764461445186,-150.71,0.000188,2]
[395130065,1764461445194,-150.71,0.000188,2]
[395130066,1764461445209,-150.71,0.000188,2]
[395130067,1764461445219,-150.71,0.000188,2]
[395130068,1764461445229,-150.71,0.000188,2]
[395130069,1764461445238,-150.71,0.000188,2]
[395130070,1764461445247,-150.71,0.000188,2]
[395130071,1764461445256,-150.71,0.000188,2]
[395130072,1764461445266,-150.71,0.000188,2]
[395130073,1764461445275,-150.71,0.000188,2]
[395130074,1764461445286,-150.71,0.000188,2]
[395130075,1764461445295,-150.71,0.000188,2]
[395130076,1764461445304,-150.71,0.000188,2]
[395130077,1764461445314,-150.71,0.000188,2]
[395130078,1764461445323,-150.71,0.000188,2]
[395130079,1764461445332,-150.71,0.000188,2]
[395130080,1764461445342,-150.71,0.000188,2]
[395130081,1764461445351,-150.71,0.000188,2]
[395130082,1764461445361,-150.71,0.000188,2]
[395130083,1764461445371,-150.71,0.000188,2]
[395130084,1764461445380,-150.71,0.000188,2]
[395130085,1764461445390,-150.71,0.000188,2]
[395130086,1764461445399,-150.71,0.000188,2]
[395130087,1764461445410,-150.71,0.000188,2]
[395130088,1764461445419,-150.71,0.000188,2]
[395130089,1764461445429,-150.71,0.000188,2]
[395130090,1764461445438,-150.71,0.000188,2]
[395130091,1764461445448,-150.71,0.000188,2]
[395130092,1764461445457,-150.71,0.000188,2]
[395130093,1764461445467,-150.71,0.000188,2]
[395130094,1764461445476,-150.71,0.000188,2]
[395130095,1764461445485,-150.71,0.000188,2]
[395130096,1764461445494,-150.71,0.000188,2]
[395130097,1764461445504,-150.71,0.000188,2]
[395130098,1764461445514,-150.71,0.000188,2]
[395130099,1764461445523,-150.71,0.000188,2]
[395130100,1764461445531,-150.71,0.000188,2]
[395130101,1764461445540,-150.71,0.000188,2]
[395130102,1764461445550,-150.71,0.000188,2]
[395130103,1764461445558,-150.71,0.000188,2]
[395130104,1764461445567,-150.71,0.000188,2]
[395130105,1764461445576,-150.71,0.000188,2]
[395130106,1764461445585,-150.71,0.000188,2]
[395130107,1764461445595,-150.71,0.000188,2]
[395130108,1764461445603,-150.71,0.000188,2]
[395130109,1764461445613,-150.71,0.000188,2]
[395130110,1764461445622,-150.27,0.00018811,2]
[395130111,1764461445631,-166.66,0.00018823,2]
[395130112,1764461445640,-3292.0,0.00018833,2]
[395130113,1764461445649,-300.0,0.00019,2]
[395130114,1764461445658,-2557.06699941,0.00019,2]
[395130115,1764461445668,-22276.35978998,0.00019,2]
[395130116,1764461445677,-22276.35978998,0.00019,2]
[395130117,1764461445687,-768.37687753,0.00019,2]
[395130118,1764461445696,-1000.0,0.00019014,2]
[395130119,1764461445706,-900.0,0.00019021,2]
[395130120,1764461445716,-2500.0,0.00019164,2]
[395130121,1764461445726,-2500.0,0.00019164,2]
[395130122,1764461445735,-2500.0,0.00019164,2]
[395130123,1764461445745,-60677.5256786,0.00019172,2]
[395130124,1764461445755,-1252.0,0.00019172,2]
[395130125,1764461445764,-3002.08260872,0.00019178,2]
[395130126,1764461445774,-1248.23131937,0.00019178,2]
[395130127,1764461445784,-200.0,0.00019178,2]
[395130128,1764461445794,-1249.0,0.00019178,2]
[395130129,1764461445803,-1249.0,0.00019178,2]
[395130130,1764461445813,-151.0,0.00019178,2]
[395130131,1764461445822,-150.0,0.000192,7]
[395130132,1764461445832,-2000.0,0.0001926,2]
[395130133,1764461445841,-3500.0,0.0001926,2]
[395130134,1764461445851,-1053.86383912,0.00019296,2]
[395130135,1764461445860,-200.0,0.0001937,2]
[395130136,1764461445870,-166.66,0.00019406,2]
[395130137,1764461445880,-963.75,0.00019438,2]
[395130138,1764461445889,-156.68871822,0.00019478,2]
[395130139,1764461445899,-200.0,0.00019563,2]
[395130140,1764461445909,-13538.986022,0.00019656,2]
[395130141,1764461445919,-3000.0,0.00019712,2]
[395130142,1764461445929,-1884.52230467,0.00019712,2]
[395130143,1764461445938,-177.37163808,0.00019712,2]
[395130144,1764461445948,-156.58700001,0.00019726,2]
[395130145,1764461445957,-250.0,0.0001988,2]
[395130146,1764461445967,-250.0,0.0001988,2]
[395130147,1764461445978,-250.0,0.0001988,2]
[395130148,1764461445987,-250.0,0.0001988,2]
[395130149,1764461445997,-250.0,0.0001988,2]
[395130150,1764461446007,-250.0,0.0001988,2]
[395130151,1764461446017,-250.0,0.0001988,2]
[395130152,1764461446027,-250.0,0.0001988,2]
[395130153,1764461446036,-1600.0,0.00019974,2]
[395130154,1764461446046,-166.66,0.00019989,2]
[395130155,1764461446056,-151.0,0.00019997,2]
[395130156,1764461446066,-265020.18417885,0.0002,5]
[395130157,1764461446075,-172.85,0.0002,2]
[395130158,1764461446085,-4500.0,0.00020049,2]
[395130159,1764461446095,-4500.0,0.00020111,2]
[395130160,1764461446105,-963.75,0.00020116,2]
[395130161,1764461446115,-1900.0,0.00020131,2]
[395130162,1764461446124,-1300.0,0.00020163,2]
[395130163,1764461446134,-1900.0,0.00020175,2]
[395130164,1764461446143,-1900.0,0.00020186,2]
[395130165,1764461446153,-543.87,0.00020187,2]
[395130166,1764461446162,-4500.0,0.00020213,2]
[395130167,1764461446172,-500.0,0.00020261,2]
[395130168,1764461446181,-1300.0,0.00020358,2]
[395130169,1764461446191,-900.0,0.0002039,2]
[395130170,1764461446202,-1714.3,0.00020456,2]
[395130171,1764461446212,-1900.0,0.00020457,2]
[395130172,1764461446221,-1300.0,0.00020476,2]
[395130173,1764461446231,-1053.86383912,0.00020495,2]
[395130174,1764461446246,-1900.0,0.00020562,2]
[395130175,1764461446255,-166.66,0.00020572,2]
[395130176,1764461446264,-150.27,0.00020592,2]
[395130177,1764461446274,-500.0,0.00020634,2]
[395130178,1764461446284,-1900.0,0.00020673,2]
[395130179,1764461446294,-4500.0,0.00020693,2]
[395130180,1764461446303,-1380.0,0.000207,2]
[395130181,1764461446312,-2000.0,0.000207,2]
[395130182,1764461446322,-1546.0,0.000207,2]
[395130183,1764461446331,-1300.0,0.00020705,2]
[395130184,1764461446341,-1900.0,0.00020707,2]
[395130185,1764461446350,-4609.0,0.00020716,2]
[395130186,1764461446359,-1000.0,0.00020743,2]
[395130187,1764461446368,-1300.0,0.00020791,2]
[395130188,1764461446378,-963.75,0.00020795,2]
[395130189,1764461446387,-1900.0,0.00020796,2]
[395130190,1764461446397,-500.0,0.00020847,2]
[395130192,1764461446406,-500.0,0.00020852,2]
[395130193,1764461446416,-1900.0,0.00020897,2]
[395130194,1764461446425,-500.0,0.00020899,2]
[395130195,1764461446435,-500.0,0.00020899,2]
[395130196,1764461446444,-940.31947038,0.000209,2]
[395130197,1764461446453,-4500.0,0.000209,2]
[395130198,1764461446463,-4500.0,0.00020907,2]
[395130199,1764461446472,-1300.0,0.00020923,2]
[395130200,1764461446482,-4500.0,0.00020942,2]
[395130201,1764461446491,-4500.0,0.00020977,2]
[395130202,1764461446501,-1300.0,0.00020978,2]
[395130203,1764461446510,-4500.0,0.00020988,2]
[395130204,1764461446519,-500.0,0.00021038,2]
[395130205,1764461446529,-500.0,0.00021076,2]
[395130206,1764461446538,-1300.0,0.00021096,2]
[395130207,1764461446548,-1300.0,0.00021111,2]
[395130208,1764461446557,-500.0,0.00021113,2]
[395130209,1764461446566,-1300.0,0.00021116,2]
[395130210,1764461446575,-4500.0,0.00021145,2]
[395130211,1764461446584,-4500.0,0.00021271,2]
[395130212,1764461446593,-4500.0,0.00021279,2]
[395130213,1764461446603,-4500.0,0.00021291,2]
[395130214,1764461446617,-1300.0,0.00021322,2]
[395130215,1764461446626,-4500.0,0.00021348,2]
[395130216,1764461446636,-6339.86,0.0002137,2]
[395130217,1764461446645,-1900.0,0.00021492,2]
[395130218,1764461446654,-500.0,0.00021496,2]
[395130219,1764461446663,-1300.0,0.000215,2]
[395130220,1764461446673,-1900.0,0.00021501,2]
[395130221,1764461446683,-1900.0,0.00021502,2]
[395130222,1764461446692,-1300.0,0.00021592,2]
[395130223,1764461446701,-4500.0,0.00021592,2]
[395130224,1764461446711,-1300.0,0.00021602,2]
[395130225,1764461446720,-500.0,0.0002169,2]
[395130226,1764461446729,-1053.86383912,0.00021693,2]
[395130227,1764461446980,-1900.0,0.00021769,2]
[395130228,1764461446990,-6904.12823386,0.00021781,2]
[395130229,1764461446999,-174.93132879,0.00021786,2]
[395130230,1764461447009,-1900.0,0.00021789,2]
[395130231,1764461447018,-4500.0,0.0002181,2]
[395130232,1764461447027,-4500.0,0.00021824,2]
[395130233,1764461447036,-500.0,0.00021888,2]
[395130234,1764461447045,-1300.0,0.00021896,2]
[395130235,1764461447055,-1900.0,0.00021902,2]
[395130236,1764461447064,-5000.0,0.00021918,2]
[395130237,1764461447073,-1900.0,0.0002193,2]
[395130238,1764461447083,-1900.0,0.00021952,2]
[395130239,1764461447092,-500.0,0.00021955,2]
[395130240,1764461447101,-4500.0,0.0002196,2]
[395130241,1764461447111,-500.0,0.00022,8]
[395130242,1764461447122,-500.0,0.00022,8]
[395130243,1764461447131,-500.0,0.00022,8]
[395130244,1764461447140,-500.0,0.00022,8]
[395130245,1764461447150,-386.63886845,0.00022,8]
[395130246,1764461447160,-500.0,0.00022,8]
[395130247,1764461447170,-500.0,0.00022,8]
[395130248,1764461447179,-500.0,0.00022,8]
[395130249,1764461447191,-500.0,0.00022,8]
[395130250,1764461447203,-500.0,0.00022,8]
[395130251,1764461447215,-500.0,0.00022,8]
[395130252,1764461447224,-500.0,0.00022,8]
[395130253,1764461447234,-500.0,0.00022,8]
[395130254,1764461447244,-606.94,0.00022,7]
[395130255,1764461447254,-1900.0,0.00022041,2]
[395130256,1764461447265,-1900.0,0.00022066,2]
[395130257,1764461447274,-500.0,0.00022085,2]
[395130258,1764461447283,-1600.0,0.00022193,2]
[395130259,1764461447292,-1300.0,0.00022196,2]
[395130260,1764461447301,-182.96,0.00022265,2]
[395130261,1764461447311,-1900.0,0.0002232,2]
[395130262,1764461447320,-1300.0,0.00022322,2]
[395130263,1764461447329,-4500.0,0.00022356,2]
[395130264,1764461447338,-4500.0,0.00022399,2]
[395130265,1764461447347,-500.0,0.00022418,2]
[395130266,1764461447356,-1900.0,0.00022437,2]
[395130267,1764461447366,-500.0,0.00022524,2]
[395130268,1764461447377,-4500.0,0.00022532,2]
[395130269,1764461447387,-1300.0,0.0002255,2]
[395130270,1764461447397,-504.85721223,0.00022568,2]
[395130271,1764461447406,-4500.0,0.00022572,2]
[395130272,1764461447415,-4500.0,0.00022604,2]
[395130273,1764461447426,-4500.0,0.0002264,2]
[395130274,1764461447435,-250.46,0.00022661,2]
[395130275,1764461447446,-210.12,0.0002267,2]
[395130276,1764461447456,-545.0,0.00022702,2]
[395130277,1764461447465,-4500.0,0.00022706,2]
[395130278,1764461447474,-1300.0,0.00022749,2]
[395130279,1764461447485,-6453.0,0.00022787,2]
[395130280,1764461447494,-1300.0,0.000228,2]
[395130281,1764461447505,-535.35192133,0.00022854,2]
[395130282,1764461447515,-1300.0,0.0002286,2]
[395130283,1764461447524,-1300.0,0.00022875,2]
[395130284,1764461447534,-1053.86383912,0.00022891,2]
[395130285,1764461447544,-514.06740241,0.00022907,2]
[395130286,1764461447556,-1900.0,0.00022954,2]
[395130287,1764461447566,-666.0,0.0002299,2]
[395130288,1764461447576,-151.0,0.00022991,2]
[395130289,1764461447586,-151.0,0.00022991,2]
[395130290,1764461447596,-214.217665,0.00022991,2]
[395130291,1764461447607,-151.0,0.00022991,2]
[395130292,1764461447617,-214.217665,0.00022991,2]
[395130293,1764461447626,-214.217665,0.00022991,2]
[395130294,1764461447635,-620.0,0.00022991,2]
[395130295,1764461447644,-374.41027667,0.00022991,2]
[395130296,1764461447653,-5702.71425951,0.00022991,2]
[395130297,1764461447662,-578.20924308,0.00022991,2]
[395130298,1764461447672,-8000.0,0.00022991,2]
[395130299,1764461447682,-1000.0,0.00022991,2]
[395130300,1764461447692,-1000.0,0.00022991,2]
[395130301,1764461447701,-8000.0,0.00022991,2]
[395130302,1764461447712,-1000.0,0.00022991,2]
[395130303,1764461447722,-8000.0,0.00022991,2]
[395130304,1764461447732,-1000.0,0.00022991,2]
[395130305,1764461447742,-8000.0,0.00022991,2]
[395130306,1764461447752,-1000.0,0.00022991,2]
[395130307,1764461447763,-500.0,0.00022991,2]
[395130308,1764461447774,-8000.0,0.00022991,2]
[395130309,1764461447784,-500.0,0.00022991,2]
[395130310,1764461447795,-8000.0,0.00022991,2]
[395130311,1764461447805,-151.0,0.00022991,2]
[395130312,1764461447815,-1000.0,0.00022991,2]
[395130313,1764461447825,-533.88981491,0.00022991,2]
[395130314,1764461447835,-500.0,0.00022991,2]
[395130315,1764461447844,-8000.0,0.00022991,2]
[395130316,1764461447854,-1000.0,0.00022991,2]
[395130317,1764461447863,-500.0,0.00022991,2]
[395130318,1764461447872,-8000.0,0.00022991,2]
[395130319,1764461447882,-250.0,0.00022991,2]
[395130320,1764461447892,-1000.0,0.00022991,2]
[395130321,1764461447901,-500.0,0.00022991,2]
[395130322,1764461447911,-8000.0,0.00022991,2]
[395130323,1764461447921,-250.0,0.00022991,2]
[395130324,1764461447931,-1000.0,0.00022991,2]
[395130325,1764461447941,-500.0,0.00022991,2]
[395130326,1764461447950,-8000.0,0.00022991,2]
[395130327,1764461447961,-250.0,0.00022991,2]
[395130328,1764461447971,-690.95555639,0.00022991,2]
[395130329,1764461447983,-1000.0,0.00022991,2]
[395130330,1764461447994,-500.0,0.00022991,2]
[395130331,1764461448004,-8000.0,0.00022991,2]
[395130332,1764461448015,-1000.0,0.00022991,2]
[395130333,1764461448025,-250.0,0.00022991,2]
[395130334,1764461448037,-500.0,0.00022991,2]
[395130335,1764461448048,-151.0,0.00022991,2]
[395130336,1764461448058,-8000.0,0.00022991,2]
[395130337,1764461448067,-1000.0,0.00022991,2]
[395130338,1764461448078,-250.0,0.00022991,2]
[395130339,1764461448089,-500.0,0.00022991,2]
[395130340,1764461448102,-160.0,0.00022991,2]